[Event "Deutscher Jugend Online Cup 2020"]
[Site "Tornelo"]
[Date "2020.11.14"]
[Round "2.1"]
[White "Goldmann, David"]
[Black "Herrmann, Jakob"]
[Result "1-0"]
[ECO "B13"]
[WhiteElo "1644"]
[BlackElo "1515"]
[Annotator "NA RC"]
[PlyCount "93"]
[EventDate "2020.11.13"]
[EventType "k.o."]
[SourceTitle "playchess.com"]
[Source "ChessBase"]
[SourceQuality "1"]
[TimeControl "600+3"]

1. e4 {[%emt 0:05:11]} c6 {[%emt 0:00:07]} 2. d4 {[%emt 0:00:02]} d5 {[%emt 0:00:02]} 3. exd5 {[%emt 0:00:01]} cxd5 {[%emt 0:00:02]} 4. c4 {[%emt 0:00:01]} Nf6 {[%emt 0:00:04]} 5. cxd5 {[%emt 0:00:02]} Nxd5 {[%emt 0:00:02]} 6. Nc3 {[%emt 0:00:01]} Nc6 {[%emt 0:00:03]} 7. Nf3 {[%emt 0:00:04]} Bg4 {[%emt 0:00:05]} 8. Be2 {[%emt 0:00:02]} e6 {[%emt 0:00:03]} 9. h3 {[%emt 0:00:01]} Bh5 {[%emt 0:00:04]} 10. O-O {[%emt 0:00:02]} Bb4 {[%emt 0:00:04]} 11. Nxd5 {[%emt 0:00:03]} Qxd5 {[%emt 0:00:03]} 12. Qa4 {[%emt 0:00:03]} O-O {[%emt 0:00:23]} 13. Be3 {[%emt 0:00:03]} Be7 {[%emt 0:00:12]} 14. Rac1 {[%emt 0:00:09]} Rac8 {[%emt 0:00:11]} 15. Bc4 {[%emt 0:00:33]} Qd7 {[%emt 0:00:15]} 16. Be2 {[%emt 0:00:03]} Rfd8 {[%emt 0:00:08]} 17. Rfd1 {[%emt 0:00:04]} Bf6 {[%emt 0:00:53]} 18. Qb3 {[%emt 0:00:18]} b6 {[%emt 0:01:16]} 19. Ne5 {[%emt 0:00:10]} Bxe5 {[%emt 0:01:18]} 20. dxe5 {[%emt 0:00:04]} Bxe2 {[%emt 0:00:09]} 21. Rxd7 {[%emt 0:00:02]} Rxd7 {[%emt 0:00:02]} 22. Qc2 {[%emt 0:00:24]} Bd3 {[%emt 0:00:09]} 23. Qc3 {[%emt 0:00:06]} Bg6 {[%emt 0:00:31]} 24. b4 {[%emt 0:00:06]} Rdc7 {[%emt 0:00:13]} 25. b5 {[%emt 0:00:03]} Nxe5 {[%emt 0:00:08]} 26. Qxc7 {[%emt 0:00:04]} Rxc7 {[%emt 0:00:03]} 27. Rxc7 {[%emt 0:00:01]} h6 {[%emt 0:00:05]} 28. Rxa7 {[%emt 0:00:04]} Bd3 {[%emt 0:00:09]} 29. a4 {[%emt 0:00:04]} Nc4 {[%emt 0:00:06]} 30. Rb7 {[%emt 0:00:12]} Be4 {[%emt 0:00:04]} 31. Rb8+ {[%emt 0:00:04]} Kh7 {[%emt 0:00:07]} 32. Bxb6 {[%emt 0:00:02]} Bd5 {[%emt 0:00:09]} 33. a5 {[%emt 0:00:03]} Nd6 {[%emt 0:00:04]} 34. a6 {[%emt 0:00:02]} Nxb5 {[%emt 0:00:02]} 35. a7 {[%emt 0:00:11]} Nxa7 {[%emt 0:00:12]} 36. Bxa7 {[%emt 0:00:01]} Kg6 {[%emt 0:00:04]} 37. Rb4 {[%emt 0:00:02]} Kf5 {[%emt 0:00:05]} 38. g4+ {[%emt 0:00:05]} Kg6 {[%emt 0:00:04]} 39. f4 {[%emt 0:00:02]} f5 {[%emt 0:00:06]} 40. Kf2 {[%emt 0:00:05]} Ba2 {[%emt 0:00:10]} 41. Kg3 {[%emt 0:00:02]} Bd5 {[%emt 0:00:02]} 42. Bb6 {[%emt 0:00:05]} Ba2 {[%emt 0:00:05]} 43. Rd4 {[%emt 0:00:02]} Bd5 {[%emt 0:00:03]} 44. Bc7 {[%emt 0:00:05]} Kf6 {[%emt 0:00:08]} 45. Be5+ {[%emt 0:00:02]} Kg6 {[%emt 0:00:02]} 46. Rb4 {[%emt 0:00:01]} Ba2 {[%emt 0:00:03]} 47. Rb7 {[%emt 0:00:03]} 1-0

[Event "Deutscher Jugend Online Cup 2020"]
[Site "Tornelo"]
[Date "2020.11.14"]
[Round "2.1"]
[White "Arnold, Rubina"]
[Black "Haug, Mara"]
[Result "0-1"]
[ECO "B22"]
[WhiteElo "1414"]
[BlackElo "1356"]
[Annotator "NA"]
[PlyCount "112"]
[EventDate "2020.11.13"]
[EventType "k.o."]
[SourceTitle "playchess.com"]
[Source "ChessBase"]
[SourceQuality "1"]
[TimeControl "600+3"]

1. e4 {[%emt 0:00:00]} c5 {[%emt 0:00:08]} 2. Nf3 {[%emt 0:00:05]} Nc6 {[%emt 0:00:04]} 3. c3 {[%emt 0:00:03]} d5 {[%emt 0:00:03]} 4. d3 {[%emt 0:00:38]} Nf6 {[%emt 0:00:22]} 5. Nbd2 {[%emt 0:00:08]} Nd7 {[%emt 0:00:06]} 6. g3 {[%emt 0:00:09]} Nb6 {[%emt 0:00:04]} 7. Bg2 {[%emt 0:00:05]} Bg4 {[%emt 0:00:04]} 8. O-O {[%emt 0:00:10]} Qd7 {[%emt 0:00:14]} 9. h3 {[%emt 0:00:15]} Bxh3 {[%emt 0:00:10]} 10. Bxh3 {[%emt 0:00:04]} Qxh3 {[%emt 0:00:06]} 11. Nh2 {[%emt 0:00:03]} Qd7 {[%emt 0:00:08]} 12. Qg4 {[%emt 0:00:15]} Qxg4 {[%emt 0:00:12]} 13. Nxg4 {[%emt 0:00:06]} h5 {[%emt 0:00:14]} 14. Nh2 {[%emt 0:00:14]} e6 {[%emt 0:00:17]} 15. f4 {[%emt 0:00:12]} h4 {[%emt 0:00:05]} 16. g4 {[%emt 0:00:07]} Bd6 {[%emt 0:00:05]} 17. e5 {[%emt 0:00:12]} Bc7 {[%emt 0:00:06]} 18. Ndf3 {[%emt 0:00:06]} Nd7 {[%emt 0:00:19]} 19. Be3 {[%emt 0:00:18]} f6 {[%emt 0:00:29]} 20. d4 {[%emt 0:00:10]} cxd4 {[%emt 0:00:04]} 21. cxd4 {[%emt 0:00:05]} Bb6 {[%emt 0:01:11]} 22. a3 {[%emt 0:00:50]} fxe5 {[%emt 0:01:19]} 23. fxe5 {[%emt 0:00:20]} Ndxe5 {[%emt 0:00:08]} 24. Nxe5 {[%emt 0:00:12]} Nxe5 {[%emt 0:00:03]} 25. b4 {[%emt 0:01:12]} Nc4 {[%emt 0:00:14]} 26. Bf2 {[%emt 0:00:17]} Rf8 {[%emt 0:00:40]} 27. Kg2 {[%emt 0:00:23]} Rf4 {[%emt 0:00:16]} 28. Nf3 {[%emt 0:00:27]} h3+ {[%emt 0:00:19]} 29. Kg3 {[%emt 0:00:10]} Rf6 {[%emt 0:00:04]} 30. Ng5 {[%emt 0:00:16]} O-O-O {[%emt 0:00:27]} 31. Bg1 {[%emt 0:00:38]} Bc7+ {[%emt 0:00:21]} 32. Kxh3 {[%emt 0:00:13]} Rh8+ {[%emt 0:00:15]} 33. Kg2 {[%emt 0:00:03]} Rfh6 {[%emt 0:00:40]} 34. Nf7 {[%emt 0:00:19]} Rh2+ {[%emt 0:01:45]} 35. Bxh2 {[%emt 0:00:07]} Ne3+ {[%emt 0:00:03]} 36. Kg1 {[%emt 0:00:22]} Bxh2+ {[%emt 0:00:03]} 37. Kf2 {[%emt 0:00:09]} Nxf1 {[%emt 0:00:15]} 38. Nxh8 {[%emt 0:00:04]} Nd2 {[%emt 0:00:03]} 39. Rc1+ {[%emt 0:00:16]} Kd7 {[%emt 0:00:07]} 40. Nf7 {[%emt 0:00:22]} Ne4+ {[%emt 0:00:06]} 41. Kf3 {[%emt 0:00:11]} Nd2+ {[%emt 0:00:09]} 42. Kg2 {[%emt 0:00:05]} Bf4 {[%emt 0:00:02]} 43. Ne5+ {[%emt 0:00:19]} Kd6 {[%emt 0:00:11]} 44. Re1 {[%emt 0:00:14]} Bxe5 {[%emt 0:00:04]} 45. dxe5+ {[%emt 0:00:03]} Ke7 {[%emt 0:00:01]} 46. g5 {[%emt 0:00:28]} Nc4 {[%emt 0:00:03]} 47. a4 {[%emt 0:00:06]} Nb2 {[%emt 0:00:03]} 48. a5 {[%emt 0:00:11]} Nc4 {[%emt 0:00:02]} 49. g6 {[%emt 0:00:05]} Nb2 {[%emt 0:00:01]} 50. Rf1 {[%emt 0:00:08]} Nd3 {[%emt 0:00:04]} 51. Rf7+ {[%emt 0:00:04]} Kd8 {[%emt 0:00:02]} 52. Rxb7 {[%emt 0:00:04]} Nxe5 {[%emt 0:00:02]} 53. Rxg7 {[%emt 0:00:05]} Ke8 {[%emt 0:00:04]} 54. Rg8+ {[%emt 0:00:12]} Ke7 {[%emt 0:00:02]} 55. b5 {[%emt 0:00:11]} Kf6 {[%emt 0:00:04]} 56. g7 {[%emt 0:00:12]} d4 {[%emt 0:00:04]} 0-1

[Event "Deutscher Jugend Online Cup 2020"]
[Site "Tornelo"]
[Date "2020.11.14"]
[Round "2.1"]
[White "B___, L___"]
[Black "Hoffmann, Svenja"]
[Result "1-0"]
[ECO "C70"]
[WhiteElo "1348"]
[BlackElo "1307"]
[Annotator "NA RC"]
[PlyCount "109"]
[EventDate "2020.11.13"]
[EventType "k.o."]
[SourceTitle "playchess.com"]
[Source "ChessBase"]
[SourceQuality "1"]
[TimeControl "600+3"]

1. e4 {[%emt 0:00:00]} e5 {[%emt 0:00:04]} 2. Nf3 {[%emt 0:00:05]} Nc6 {[%emt 0:00:02]} 3. Bb5 {[%emt 0:00:12]} a6 {[%emt 0:00:04]} 4. Ba4 {[%emt 0:00:02]} b5 {[%emt 0:00:02]} 5. Bb3 {[%emt 0:00:02]} Na5 {[%emt 0:00:03]} 6. Nxe5 {[%emt 0:00:42]} Qg5 {[%emt 0:00:22]} 7. Nxf7 {[%emt 0:00:29]} Qxg2 {[%emt 0:00:03]} 8. Rf1 {[%emt 0:00:32]} Qxe4+ {[%emt 0:00:18]} 9. Qe2 {[%emt 0:00:04]} Qxe2+ {[%emt 0:00:05]} 10. Kxe2 {[%emt 0:00:02]} d6 {[%emt 0:00:24]} 11. Nxh8 {[%emt 0:00:04]} Bg4+ {[%emt 0:00:03]} 12. f3 {[%emt 0:00:03]} Bf5 {[%emt 0:00:05]} 13. Nc3 {[%emt 0:00:15]} Nf6 {[%emt 0:00:08]} 14. d3 {[%emt 0:00:10]} c5 {[%emt 0:00:12]} 15. a4 {[%emt 0:00:21]} Nxb3 {[%emt 0:00:14]} 16. cxb3 {[%emt 0:00:02]} b4 {[%emt 0:00:03]} 17. Ne4 {[%emt 0:00:06]} Nd5 {[%emt 0:00:10]} 18. Bg5 {[%emt 0:00:14]} h6 {[%emt 0:00:06]} 19. Bh4 {[%emt 0:00:15]} g5 {[%emt 0:00:04]} 20. Bg3 {[%emt 0:00:02]} Nf4+ {[%emt 0:00:16]} 21. Bxf4 {[%emt 0:00:17]} gxf4 {[%emt 0:00:03]} 22. Rg1 {[%emt 0:00:06]} Kd7 {[%emt 0:00:32]} 23. Nf7 {[%emt 0:00:14]} Re8 {[%emt 0:00:08]} 24. Kd2 {[%emt 0:00:11]} Bxe4 {[%emt 0:00:08]} 25. dxe4 {[%emt 0:00:05]} Re7 {[%emt 0:00:17]} 26. Nh8 {[%emt 0:00:07]} Bg7 {[%emt 0:00:27]} 27. Ng6 {[%emt 0:00:03]} Rf7 {[%emt 0:00:05]} 28. Rg4 {[%emt 0:00:05]} Bxb2 {[%emt 0:00:05]} 29. Ra2 {[%emt 0:00:07]} Bc3+ {[%emt 0:00:02]} 30. Ke2 {[%emt 0:00:05]} Ke6 {[%emt 0:00:47]} 31. Nxf4+ {[%emt 0:00:07]} Ke5 {[%emt 0:00:05]} 32. Nd5 {[%emt 0:00:09]} Kd4 {[%emt 0:00:37]} 33. Rc2 {[%emt 0:00:14]} h5 {[%emt 0:00:21]} 34. Rh4 {[%emt 0:00:05]} Rg7 {[%emt 0:00:12]} 35. Rxh5 {[%emt 0:00:12]} Rg2+ {[%emt 0:00:05]} 36. Kd1 {[%emt 0:00:03]} Rg1+ {[%emt 0:00:40]} 37. Ke2 {[%emt 0:00:25]} Re1+ {[%emt 0:00:03]} 38. Kf2 {[%emt 0:00:07]} Rd1 {[%emt 0:00:46]} 39. Ke2 {[%emt 0:00:29]} Rg1 {[%emt 0:00:12]} 40. Kf2 {[%emt 0:00:05]} Rd1 {[%emt 0:00:25]} 41. h4 {[%emt 0:00:15]} Kd3 {[%emt 0:00:15]} 42. Re2 {[%emt 0:00:18]} c4 {[%emt 0:00:29]} 43. bxc4 {[%emt 0:00:09]} b3 {[%emt 0:00:14]} 44. Re3+ {[%emt 0:00:13]} Kd2 {[%emt 0:00:03]} 45. Nxc3 {[%emt 0:00:07]} b2 {[%emt 0:00:05]} 46. Rd5+ {[%emt 0:00:29]} Kc2 {[%emt 0:00:16]} 47. Rxd1 {[%emt 0:00:04]} Kb3 {[%emt 0:00:17]} 48. h5 {[%emt 0:00:13]} Kxc4 {[%emt 0:00:07]} 49. h6 {[%emt 0:00:04]} Kb3 {[%emt 0:00:03]} 50. h7 {[%emt 0:00:03]} Kc2 {[%emt 0:00:07]} 51. h8=Q {[%emt 0:00:04]} a5 {[%emt 0:00:07]} 52. Qb8 {[%emt 0:00:08]} d5 {[%emt 0:00:30]} 53. Re2+ {[%emt 0:00:08]} Kxc3 {[%emt 0:00:03]} 54. Qxb2+ {[%emt 0:00:03]} Kc4 {[%emt 0:00:03]} 55. Rc2# {[%emt 0:00:02]} 1-0

[Event "Deutscher Jugend Online Cup 2020"]
[Site "Tornelo"]
[Date "2020.11.14"]
[Round "2.2"]
[White "Sereda, Yaroslava"]
[Black "Bildat, Emilia"]
[Result "0-1"]
[ECO "B35"]
[WhiteElo "1750"]
[BlackElo "1852"]
[Annotator "NA RC"]
[PlyCount "84"]
[EventDate "2020.11.13"]
[EventType "k.o."]
[SourceTitle "playchess.com"]
[Source "ChessBase"]
[SourceQuality "1"]
[TimeControl "600+3"]

1. e4 {[%emt 0:00:00]} c5 {[%emt 0:00:05]} 2. Nf3 {[%emt 0:00:05]} g6 {[%emt 0:00:03]} 3. d4 {[%emt 0:00:08]} cxd4 {[%emt 0:00:02]} 4. Nxd4 {[%emt 0:00:03]} Bg7 {[%emt 0:00:02]} 5. Be3 {[%emt 0:00:07]} Nc6 {[%emt 0:00:02]} 6. Nc3 {[%emt 0:00:06]} Nf6 {[%emt 0:00:03]} 7. Bc4 {[%emt 0:00:08]} Qa5 {[%emt 0:00:13]} 8. O-O {[%emt 0:00:05]} O-O {[%emt 0:00:31]} 9. Nb3 {[%emt 0:00:06]} Qd8 {[%emt 0:00:44]} 10. f4 {[%emt 0:00:17]} d6 {[%emt 0:00:04]} 11. Be2 {[%emt 0:01:45]} Bd7 {[%emt 0:00:28]} 12. g4 {[%emt 0:00:26]} Rc8 {[%emt 0:00:28]} 13. g5 {[%emt 0:00:10]} Ne8 {[%emt 0:00:14]} 14. f5 {[%emt 0:00:54]} f6 {[%emt 0:01:00]} (14... Bxc3 $15 15. bxc3 Ng7) 15. Bc4+ {[%emt 0:01:06]} Kh8 {[%emt 0:00:04]} 16. fxg6 {[%emt 0:00:28]} hxg6 {[%emt 0:00:11]} 17. Qe1 {[%emt 0:00:25]} e6 {[%emt 0:00:52]} 18. Qh4+ {[%emt 0:00:08]} Kg8 {[%emt 0:00:02]} 19. gxf6 {[%emt 0:00:21]} Bxf6 {[%emt 0:00:19]} 20. Qg4 {[%emt 0:00:48]} Ne5 {[%emt 0:00:15]} 21. Bxe6+ {[%emt 0:00:05]} Kg7 {[%emt 0:00:24]} 22. Qh3 $1 {[%emt 0:00:54]} Rh8 {[%emt 0:00:06]} 23. Bxd7 {[%emt 0:00:19]} Rxh3 {[%emt 0:00:13]} 24. Bxh3 {[%emt 0:00:03]} Rc7 {[%emt 0:00:13]} 25. Nd4 {[%emt 0:00:03]} Re7 {[%emt 0:00:41]} 26. Nd5 {[%emt 0:00:07]} Kh8 $2 {[%emt 0:00:19]} (26... Nc4 $16 {is more resistant.} 27. Nxe7 Qxe7 28. Ne6+ {[%mdl 64] Discovered Attack} Kg8) 27. Nxe7 $2 {[%emt 0:00:19]} ({Worse is} 27. Rxf6 Nxf6 28. Nxf6 Nc4 $11) (27. Nxf6 $18 Nxf6 28. Rxf6) 27... Qxe7 {[%emt 0:00:04]} 28. b3 {[%emt 0:00:59]} Qh7 {[%emt 0:00:24]} (28... Ng4 $1 $11 {keeps the balance.} 29. Bxg4 Qxe4 {[%mdl 64] Double Attack}) 29. Bg2 {[%emt 0:00:17]} Ng4 {[%emt 0:00:11]} 30. Nf3 {[%emt 0:00:24]} Nxe3 {[%emt 0:00:13]} 31. Rfe1 {[%emt 0:00:03]} Nxc2 {[%emt 0:00:13]} 32. Rac1 {[%emt 0:00:09]} Nxe1 {[%emt 0:00:02]} 33. Rxe1 {[%emt 0:00:03]} Qc7 {[%emt 0:00:29]} 34. Rd1 {[%emt 0:00:13]} Qc2 {[%emt 0:00:13]} 35. Rd2 $19 {[%emt 0:00:04]} Qc1+ {[%emt 0:00:07]} 36. Kf2 {[%emt 0:00:05]} Qc5+ {[%emt 0:00:05]} 37. Kf1 {[%emt 0:00:03]} Qc1+ {[%emt 0:00:05]} 38. Ke2 {[%emt 0:00:02]} Qc5 {[%emt 0:00:15]} 39. h3 {[%emt 0:00:04]} Ng7 {[%emt 0:00:11]} 40. Bh1 {[%emt 0:00:05]} Ne6 {[%emt 0:00:06]} 41. Rd1 {[%emt 0:00:02]} Nf4+ {[%emt 0:00:04]} 42. Kd2 {[%emt 0:00:02]} Qc3# {[%emt 0:00:05]} 0-1

[Event "Deutscher Jugend Online Cup 2020"]
[Site "Tornelo"]
[Date "2020.11.14"]
[Round "2.2"]
[White "Wilmink, Anna"]
[Black "Braeutigam, Katerina"]
[Result "1-0"]
[ECO "B10"]
[WhiteElo "1550"]
[BlackElo "1737"]
[Annotator "NA RC"]
[PlyCount "45"]
[EventDate "2020.11.13"]
[EventType "k.o."]
[SourceTitle "playchess.com"]
[Source "ChessBase"]
[SourceQuality "1"]
[TimeControl "600+3"]

1. e4 {[%emt 0:00:00]} c6 {[%emt 0:00:05]} 2. Nf3 {[%emt 0:00:08]} d5 {[%emt 0:00:04]} 3. exd5 {[%emt 0:00:03]} cxd5 {[%emt 0:00:02]} 4. Ne5 {[%emt 0:00:01]} Nc6 {[%emt 0:00:04]} 5. f4 {[%emt 0:00:03]} Nf6 {[%emt 0:00:21]} 6. d4 {[%emt 0:00:15]} e6 {[%emt 0:00:09]} 7. c3 {[%emt 0:00:07]} Bd6 {[%emt 0:00:14]} 8. Nd2 {[%emt 0:00:07]} O-O {[%emt 0:00:14]} 9. Bd3 {[%emt 0:00:06]} Qc7 {[%emt 0:01:03]} 10. O-O {[%emt 0:00:05]} Rb8 {[%emt 0:00:42]} 11. Rf3 {[%emt 0:00:27]} b5 {[%emt 0:01:27]} 12. Rg3 {[%emt 0:00:58]} b4 {[%emt 0:03:24]} 13. Ng4 {[%emt 0:01:34]} Nxg4 {[%emt 0:00:48]} 14. Qxg4 {[%emt 0:00:07]} f5 {[%emt 0:00:02]} 15. Qh5 {[%emt 0:00:42]} Bxf4 {[%emt 0:00:45]} 16. Rh3 {[%emt 0:00:21]} g6 {[%emt 0:00:06]} 17. Qe2 {[%emt 0:00:25]} Nd8 {[%emt 0:00:32]} 18. Nf3 {[%emt 0:00:11]} bxc3 {[%emt 0:00:31]} 19. bxc3 {[%emt 0:00:17]} Bxc1 {[%emt 0:00:03]} 20. Rxc1 {[%emt 0:00:03]} Bd7 {[%emt 0:00:10]} 21. Ng5 {[%emt 0:00:17]} h5 {[%emt 0:00:10]} 22. Rg3 {[%emt 0:00:28]} Kh8 {[%emt 0:00:07]} 23. Nf3 {[%emt 0:00:11]} 1-0

[Event "Deutscher Jugend Online Cup 2020"]
[Site "Tornelo"]
[Date "2020.11.14"]
[Round "2.2"]
[White "B_____, L___"]
[Black "Buchinger, Alexis"]
[Result "0-1"]
[ECO "E90"]
[WhiteElo "1508"]
[BlackElo "1496"]
[Annotator "NA RC"]
[PlyCount "136"]
[EventDate "2020.11.13"]
[EventType "k.o."]
[SourceTitle "playchess.com"]
[Source "ChessBase"]
[SourceQuality "1"]
[TimeControl "600+3"]

1. d4 {[%emt 0:00:00]} Nf6 {[%emt 0:00:27]} 2. Nf3 {[%emt 0:00:03]} g6 {[%emt 0:00:10]} 3. c4 {[%emt 0:00:08]} Bg7 {[%emt 0:00:04]} 4. Nc3 {[%emt 0:00:02]} c5 {[%emt 0:00:07]} 5. d5 {[%emt 0:00:09]} d6 {[%emt 0:00:05]} 6. e4 {[%emt 0:00:07]} O-O {[%emt 0:00:04]} 7. Bd3 {[%emt 0:00:03]} a6 {[%emt 0:00:16]} 8. h3 {[%emt 0:00:04]} Bd7 {[%emt 0:00:10]} 9. Be3 {[%emt 0:00:08]} Be8 {[%emt 0:00:23]} 10. Qe2 {[%emt 0:00:06]} Nbd7 {[%emt 0:00:05]} 11. Rc1 {[%emt 0:00:07]} Rb8 {[%emt 0:00:12]} 12. O-O {[%emt 0:00:06]} b6 {[%emt 0:00:36]} 13. Rfd1 {[%emt 0:00:05]} e5 {[%emt 0:00:06]} 14. b3 {[%emt 0:00:11]} h5 {[%emt 0:00:20]} 15. Bg5 {[%emt 0:00:06]} Kh7 {[%emt 0:00:06]} 16. Qd2 {[%emt 0:00:15]} Qc7 {[%emt 0:00:07]} 17. a3 {[%emt 0:00:11]} Rb7 {[%emt 0:00:21]} 18. Rb1 {[%emt 0:00:10]} Nb8 {[%emt 0:00:05]} 19. Qe2 {[%emt 0:00:28]} Qd7 {[%emt 0:00:39]} 20. b4 {[%emt 0:00:34]} Ng8 {[%emt 0:00:32]} 21. Be3 {[%emt 0:02:00]} Nh6 {[%emt 0:00:23]} 22. Qb2 {[%emt 0:01:00]} cxb4 {[%emt 0:00:48]} 23. axb4 {[%emt 0:00:24]} f5 {[%emt 0:00:08]} 24. Ng5+ {[%emt 0:00:06]} Kg8 {[%emt 0:00:29]} 25. Ne6 {[%emt 0:00:06]} Rf7 {[%emt 0:00:46]} 26. Bg5 {[%emt 0:00:46]} Ra7 {[%emt 0:00:55]} 27. c5 {[%emt 0:00:13]} b5 {[%emt 0:00:23]} 28. c6 {[%emt 0:00:31]} Qc8 {[%emt 0:00:18]} 29. Be3 {[%emt 0:00:41]} Rae7 {[%emt 0:00:24]} 30. Bg5 {[%emt 0:00:11]} Rxe6 {[%emt 0:00:10]} 31. dxe6 {[%emt 0:00:02]} Qxe6 {[%emt 0:00:03]} 32. Bc2 {[%emt 0:00:26]} Nxc6 {[%emt 0:00:24]} 33. Bb3 {[%emt 0:00:05]} Qd7 {[%emt 0:00:32]} 34. Bxf7+ {[%emt 0:00:04]} Bxf7 {[%emt 0:00:02]} 35. Be3 {[%emt 0:00:23]} fxe4 {[%emt 0:00:07]} 36. Nxe4 {[%emt 0:00:06]} Nd4 {[%emt 0:00:04]} 37. Bxd4 {[%emt 0:00:21]} exd4 {[%emt 0:00:05]} 38. Rbc1 {[%emt 0:00:34]} d3 {[%emt 0:00:13]} 39. Nf6+ {[%emt 0:00:09]} Kh8 {[%emt 0:00:18]} 40. Nxd7 {[%emt 0:00:06]} Bxb2 {[%emt 0:00:02]} 41. Rc8+ {[%emt 0:00:02]} Kg7 {[%emt 0:00:08]} 42. Rxd3 {[%emt 0:00:14]} Nf5 {[%emt 0:00:02]} 43. Rc7 {[%emt 0:00:05]} Bc4 {[%emt 0:00:09]} 44. Rf3 {[%emt 0:00:05]} Kh6 {[%emt 0:00:06]} 45. g4 {[%emt 0:00:02]} hxg4 {[%emt 0:00:02]} 46. hxg4 {[%emt 0:00:02]} Nd4 {[%emt 0:00:04]} 47. Rh3+ {[%emt 0:00:04]} Kg5 {[%emt 0:00:01]} 48. f3 {[%emt 0:00:15]} Ne2+ {[%emt 0:00:05]} 49. Kf2 {[%emt 0:00:04]} Bd4+ {[%emt 0:00:04]} 50. Kg2 {[%emt 0:00:07]} Nf4+ {[%emt 0:00:02]} 51. Kg3 {[%emt 0:00:01]} Nxh3 {[%emt 0:00:05]} 52. Kxh3 {[%emt 0:00:01]} Bf2 {[%emt 0:00:03]} 53. Kg2 {[%emt 0:00:03]} Bd4 {[%emt 0:00:03]} 54. Nb8 {[%emt 0:00:07]} d5 {[%emt 0:00:05]} 55. Nxa6 {[%emt 0:00:06]} Kf4 {[%emt 0:00:02]} 56. Rf7+ {[%emt 0:00:02]} Ke3 {[%emt 0:00:03]} 57. Re7+ {[%emt 0:00:02]} Kd3 {[%emt 0:00:03]} 58. Re6 {[%emt 0:00:04]} Bc3 {[%emt 0:00:05]} 59. Rxg6 {[%emt 0:00:02]} Kc2 {[%emt 0:00:02]} 60. Rd6 {[%emt 0:00:03]} d4 {[%emt 0:00:01]} 61. Kf2 {[%emt 0:00:06]} d3 {[%emt 0:00:02]} 62. g5 {[%emt 0:00:03]} d2 {[%emt 0:00:02]} 63. g6 {[%emt 0:00:03]} Bd3 {[%emt 0:00:05]} 64. Re6 {[%emt 0:00:07]} d1=Q {[%emt 0:00:03]} 65. Kg3 {[%emt 0:00:02]} Qg1+ {[%emt 0:00:02]} 66. Kf4 {[%emt 0:00:01]} Qh2+ {[%emt 0:00:04]} 67. Kg5 {[%emt 0:00:03]} Qg3+ {[%emt 0:00:02]} 68. Kh6 {[%emt 0:00:01]} Qh4# {[%emt 0:00:02]} 0-1

[Event "Deutscher Jugend Online Cup 2020"]
[Site "Tornelo"]
[Date "2020.11.14"]
[Round "2.2"]
[White "Richter, Johanna"]
[Black "Kutz, Ida"]
[Result "1/2-1/2"]
[ECO "E61"]
[WhiteElo "1178"]
[BlackElo "1269"]
[Annotator "NA RC"]
[PlyCount "144"]
[EventDate "2020.11.13"]
[EventType "k.o."]
[SourceTitle "playchess.com"]
[Source "ChessBase"]
[SourceQuality "1"]
[TimeControl "600+3"]

1. d4 {[%emt 0:00:00]} Nf6 {[%emt 0:00:07]} 2. c4 {[%emt 0:00:05]} g6 {[%emt 0:00:01]} 3. Nc3 {[%emt 0:00:03]} Bg7 {[%emt 0:00:03]} 4. Nf3 {[%emt 0:00:04]} O-O {[%emt 0:00:03]} 5. g3 {[%emt 0:00:03]} d5 {[%emt 0:00:17]} 6. cxd5 {[%emt 0:00:06]} Nxd5 {[%emt 0:00:03]} 7. Bg2 {[%emt 0:00:04]} Nc6 {[%emt 0:00:27]} 8. e3 {[%emt 0:00:10]} Bf5 {[%emt 0:00:17]} 9. O-O {[%emt 0:00:26]} Nxc3 {[%emt 0:00:12]} 10. bxc3 {[%emt 0:00:05]} e5 {[%emt 0:00:18]} 11. Nh4 {[%emt 0:00:43]} exd4 {[%emt 0:00:32]} 12. Nxf5 {[%emt 0:00:12]} gxf5 {[%emt 0:00:14]} 13. exd4 {[%emt 0:00:17]} Qd6 {[%emt 0:00:15]} 14. Qb3 {[%emt 0:00:09]} Na5 {[%emt 0:00:14]} 15. Qa4 {[%emt 0:00:10]} Nc6 {[%emt 0:00:57]} 16. Ba3 {[%emt 0:00:08]} Qd7 {[%emt 0:00:11]} 17. Bxf8 {[%emt 0:00:08]} Rxf8 {[%emt 0:00:02]} 18. Qb5 {[%emt 0:00:20]} Rb8 {[%emt 0:00:07]} 19. Qd5 {[%emt 0:00:13]} Qxd5 {[%emt 0:00:04]} 20. Bxd5 {[%emt 0:00:04]} Ne7 {[%emt 0:00:02]} 21. Bg2 {[%emt 0:00:03]} b6 {[%emt 0:00:08]} 22. Rfe1 {[%emt 0:00:11]} Ng6 {[%emt 0:00:10]} 23. Bh3 {[%emt 0:00:10]} f4 {[%emt 0:00:05]} 24. Bf5 {[%emt 0:00:42]} fxg3 {[%emt 0:00:18]} 25. hxg3 {[%emt 0:00:05]} c5 {[%emt 0:00:03]} 26. Red1 {[%emt 0:00:23]} cxd4 {[%emt 0:00:12]} 27. cxd4 {[%emt 0:00:02]} Ne7 {[%emt 0:00:03]} 28. Rab1 {[%emt 0:00:08]} Nxf5 {[%emt 0:00:06]} 29. d5 {[%emt 0:00:09]} Nd4 {[%emt 0:00:14]} 30. Rb4 {[%emt 0:00:47]} Nf3+ {[%emt 0:00:38]} 31. Kg2 {[%emt 0:00:10]} Ne5 {[%emt 0:00:30]} 32. Rbd4 {[%emt 0:00:32]} Ng6 {[%emt 0:00:20]} 33. R4d3 {[%emt 0:00:17]} Ne5 {[%emt 0:00:06]} 34. Rd4 {[%emt 0:00:14]} Ng6 {[%emt 0:00:04]} 35. R4d2 {[%emt 0:00:06]} Rd8 {[%emt 0:00:12]} 36. d6 {[%emt 0:00:10]} Bh6 {[%emt 0:00:13]} 37. Rd5 {[%emt 0:00:11]} Rd7 {[%emt 0:00:19]} 38. f4 {[%emt 0:00:21]} Bf8 {[%emt 0:00:20]} 39. Kf3 {[%emt 0:00:07]} h5 {[%emt 0:00:08]} 40. f5 {[%emt 0:00:26]} Nh8 {[%emt 0:00:17]} 41. g4 {[%emt 0:00:06]} hxg4+ {[%emt 0:00:04]} 42. Kxg4 {[%emt 0:00:06]} f6 {[%emt 0:00:02]} 43. Kf4 {[%emt 0:00:25]} Nf7 {[%emt 0:00:08]} 44. Ke4 {[%emt 0:00:20]} Nxd6+ {[%emt 0:00:14]} 45. Ke3 {[%emt 0:00:17]} Nxf5+ {[%emt 0:00:17]} 46. Ke4 {[%emt 0:00:08]} Rxd5 {[%emt 0:00:11]} 47. Rxd5 {[%emt 0:00:18]} Ne7 {[%emt 0:00:05]} 48. Rd7 {[%emt 0:00:10]} f5+ {[%emt 0:00:06]} 49. Kf3 {[%emt 0:00:19]} Kf7 {[%emt 0:00:18]} 50. Rxa7 {[%emt 0:00:07]} Kf6 {[%emt 0:00:02]} 51. Rb7 {[%emt 0:00:16]} Nd5 {[%emt 0:00:07]} 52. Rd7 {[%emt 0:00:15]} Nc3 {[%emt 0:00:11]} 53. Rb7 {[%emt 0:00:16]} Nxa2 {[%emt 0:00:09]} 54. Rxb6+ {[%emt 0:00:03]} Kg5 {[%emt 0:00:11]} 55. Kg3 {[%emt 0:00:15]} f4+ {[%emt 0:00:11]} 56. Kf3 {[%emt 0:00:06]} Nc3 {[%emt 0:00:11]} 57. Ra6 {[%emt 0:00:25]} Nd5 {[%emt 0:00:12]} 58. Ra5 {[%emt 0:00:03]} Kf6 {[%emt 0:00:21]} 59. Rxd5 {[%emt 0:00:02]} Bh6 {[%emt 0:00:08]} 60. Ra5 {[%emt 0:00:07]} Kg6 {[%emt 0:00:12]} 61. Ra6+ {[%emt 0:00:01]} Kh5 {[%emt 0:00:03]} 62. Ra5+ {[%emt 0:00:05]} Kg6 {[%emt 0:00:04]} 63. Kg4 {[%emt 0:00:06]} Kh7 {[%emt 0:00:27]} 64. Ra7+ {[%emt 0:00:02]} Kg6 {[%emt 0:00:03]} 65. Ra6+ {[%emt 0:00:01]} Kh7 {[%emt 0:00:02]} 66. Kf3 {[%emt 0:00:03]} Kg7 {[%emt 0:00:04]} 67. Ra1 {[%emt 0:00:02]} Kg6 {[%emt 0:00:03]} 68. Rg1+ {[%emt 0:00:02]} Kh5 {[%emt 0:00:05]} 69. Rg4 {[%emt 0:00:04]} Bg5 {[%emt 0:00:11]} 70. Rg1 {[%emt 0:00:04]} Bh6 {[%emt 0:00:05]} 71. Rh1+ {[%emt 0:00:01]} Kg5 {[%emt 0:00:02]} 72. Rg1+ {[%emt 0:00:02]} Kh5 {[%emt 0:00:03]} 1/2-1/2